bitfinex-derivatives/quotes_SOLF0:USTF0_20220101
["timestamp","ask_amount","ask_price","bid_price","bid_amount"]
[1641046296335,12.34585728,172.61,172.57,5.90895541]
[1641046300043,14.66761807,172.62,172.58,4.11537783]
[1641046301246,12.34585728,172.61,172.57,5.90895541]
[1641046301945,11.25632258,172.62,172.57,5.90895541]
[1641046302546,12.34579723,172.61,172.57,5.90895541]
[1641046302947,40.01058723,172.61,172.57,5.90895541]
[1641046303147,27.66479,172.61,172.57,4.11537783]
[1641046303348,12.34744978,172.59,172.55,4.11537783]
[1641046304750,11.25632258,172.6,172.55,4.11537783]
[1641046305459,12.34717405,172.59,172.55,4.11537783]
[1641046306059,11.25632258,172.6,172.55,4.11537783]
[1641046306670,12.34715292,172.59,172.55,4.11537783]
[1641046308063,11.25632258,172.6,172.55,4.11537783]
[1641046308260,11.25632258,172.61,172.55,4.11537783]
[1641046308662,11.25632258,172.61,172.54,4.11537783]
[1641046308663,12.32368218,172.6,172.54,4.11537783]
[1641046309764,14.64544297,172.61,172.54,4.11537783]
[1641046311671,4.10782768,172.57,172.54,4.11537783]
[1641046312068,14.64544297,172.61,172.54,4.11537783]
[1641046312972,4.10803146,172.56,172.53,5.90891183]
[1641046313572,12.32368218,172.6,172.53,5.90891183]
[1641046314674,4.10806283,172.55,172.53,5.90891183]
[1641046315073,31.585,172.58,172.53,4.11537783]
[1641046315274,31.585,172.58,172.52,62.96746783]
[1641046315473,31.585,172.58,172.53,6.295]
[1641046316075,4.10798812,172.56,172.53,12.20049632]
[1641046316775,2.32176079,172.57,172.53,12.20049632]
[1641046316776,31.585,172.58,172.53,10.41037783]
[1641046317476,12.32368218,172.6,172.53,10.41037783]
[1641046317675,4.10785294,172.57,172.54,5.90550984]
[1641046318277,2.31765548,172.6,172.54,5.90550984]
[1641046318878,4.10780087,172.57,172.54,5.90550984]
[1641046319081,4.10780087,172.57,172.55,27.66479]
[1641046319682,2.31765548,172.59,172.54,4.11537783]
[1641046320079,4.10779278,172.57,172.54,5.90551586]
[1641046320681,30.7919,172.6,172.54,5.90551586]
[1641046320884,30.7919,172.6,172.56,4.11537783]
[1641046320885,14.64574598,172.59,172.56,4.11537783]
[1641046321483,30.7919,172.6,172.56,4.11537783]
[1641046322084,14.66889963,172.59,172.56,4.11537783]
[1641046322783,30.7919,172.6,172.55,4.11537783]
[1641046323284,14.66895178,172.59,172.55,4.11537783]
[1641046323983,30.7919,172.6,172.55,4.11537783]
[1641046324584,14.66621708,172.59,172.55,4.11537783]
[1641046325584,30.7919,172.6,172.55,4.11537783]
[1641046326286,14.66629501,172.59,172.55,4.11537783]
[1641046326886,30.7919,172.6,172.55,4.11537783]
[1641046327688,12.3452155,172.58,172.54,4.11537783]
[1641046328586,11.25693542,172.59,172.54,4.11537783]
[1641046328587,2.32187842,172.59,172.54,4.11537783]
[1641046328786,14.66684734,172.59,172.55,4.11537783]
[1641046333094,14.66684734,172.59,172.55,31.78016783]
[1641046342911,14.66684734,172.59,172.55,27.66479]
[1641046351323,14.66684734,172.59,172.54,4.11537783]
[1641046352022,14.66684734,172.59,172.53,5.9076048]
[1641046352225,12.34496892,172.58,172.53,5.9076048]
[1641046352825,4.11296125,172.54,172.53,5.9076048]
[1641046353425,12.34496892,172.58,172.53,5.9076048]
[1641046354225,4.11381821,172.54,172.53,5.9076048]
[1641046354824,4.11381821,172.54,172.53,4.8e-06]
[1641046355024,12.34496892,172.57,172.52,5.90669412]
[1641046355224,36.46004369,172.55,172.48,12.34458219]
[1641046355424,33.46004369,172.55,172.48,12.34458219]
[1641046356025,12.34496892,172.51,172.46,27.66479]
[1641046357227,12.34496892,172.51,172.43,40.00937219]
[1641046358129,12.34496892,172.51,172.43,27.66479]
[1641046359127,12.34496892,172.51,172.46,27.66479]
[1641046361129,12.34496892,172.5,172.46,27.66479]
[1641046362434,12.34496892,172.5,172.47,3.0]
[1641046362631,9.22595134,172.51,172.47,3.0]
[1641046363331,12.34970318,172.55,172.47,22.58823047]
[1641046363531,12.34970318,172.55,172.47,55.24503047]
[1641046363832,12.34970318,172.54,172.47,55.24503047]
[1641046364535,9.22595134,172.57,172.47,48.00138219]
[1641046365134,12.34988796,172.54,172.47,48.00138219]
[1641046365334,12.34988796,172.54,172.51,27.66479]
[1641046365834,12.35055824,172.53,172.51,27.66479]
[1641046366233,12.35055824,172.53,172.47,32.6568]
[1641046366435,12.3515347,172.52,172.47,32.6568]
[1641046368034,9.22595134,172.53,172.47,32.6568]
[1641046368535,30.9145,172.54,172.47,32.6568]
[1641046378849,12.28418384,172.55,172.47,32.6568]
[1641046379350,12.28418384,172.51,172.5,27.66479]
[1641046380054,9.22528038,172.53,172.5,27.66479]
[1641046380251,12.34960957,172.55,172.5,27.66479]
[1641046381054,12.34960957,172.54,172.5,27.66479]
[1641046381650,9.22528038,172.57,172.5,27.66479]
[1641046381651,12.34957219,172.55,172.5,27.66479]
[1641046387863,9.22528038,172.57,172.5,27.66479]
[1641046388366,12.34927695,172.55,172.5,27.66479]
[1641046389168,9.22528038,172.57,172.5,27.66479]
[1641046389772,12.35004114,172.54,172.5,27.66479]
[1641046390571,15.35004114,172.54,172.46,40.00937219]
[1641046390970,3.0,172.54,172.46,40.00937219]
[1641046391572,12.35259491,172.5,172.46,27.66479]
[1641046392774,9.22528038,172.53,172.46,27.66479]
[1641046393273,12.35263102,172.5,172.46,27.66479]
[1641046393874,9.22528038,172.53,172.46,27.66479]
[1641046394575,12.35263823,172.5,172.46,27.66479]
[1641046395177,9.22528038,172.53,172.46,27.66479]
[1641046395875,12.35263625,172.5,172.46,27.66479]
[1641046396976,11.65569739,172.53,172.46,27.66479]
[1641046397478,11.65569739,172.53,172.47,1.68712824]
[1641046397677,12.35264129,172.5,172.47,1.68712824]
[1641046398377,11.65569739,172.53,172.47,1.68712824]
[1641046398578,12.35263373,172.51,172.47,1.68712824]
[1641046400279,12.35263373,172.51,172.45,1.68712824]
[1641046402382,14.78305074,172.51,172.45,1.68712824]
[1641046403987,17.78305074,172.51,172.45,1.68712824]
[1641046404186,14.78305074,172.51,172.45,1.68712824]
[1641046404388,14.78305074,172.5,172.45,1.68712824]
[1641046405089,11.65740657,172.51,172.45,1.68712824]
[1641046406092,12.35317029,172.5,172.45,1.68712824]
[1641046406790,12.35317029,172.49,172.45,1.68712824]
[1641046407290,12.35340078,172.5,172.45,1.68712824]
[1641046411907,12.35340078,172.49,172.45,1.68712824]
[1641046415616,12.35340078,172.49,172.45,5.80516712]
[1641046428629,12.35340078,172.49,172.45,4.11803888]
[1641046428830,12.35340078,172.49,172.44,31.9364]
[1641046428831,12.35340078,172.49,172.44,36.05443888]
[1641046429532,4.11459527,172.45,172.44,36.05443888]
[1641046430133,12.35340078,172.49,172.44,37.74011013]
[1641046430534,4.11461776,172.45,172.44,36.05443888]
[1641046430732,4.11461776,172.45,172.44,4.11803888]
[1641046431836,12.35340078,172.49,172.44,4.11803888]
[1641046432036,12.35340078,172.48,172.43,4.11803888]
[1641046432536,4.11480414,172.44,172.43,4.11803888]
[1641046433439,12.35340078,172.48,172.43,4.11803888]
[1641046433638,12.35340078,172.48,172.43,5.80368784]
[1641046434138,12.35340078,172.48,172.43,4.11803888]
[1641046434139,4.11483948,172.44,172.43,4.11803888]
[1641046434638,12.35340078,172.48,172.43,4.11803888]
[1641046435338,4.11485426,172.44,172.43,4.11803888]
[1641046435941,12.35340078,172.48,172.43,4.11803888]
[1641046436140,4.11481616,172.45,172.43,4.11803888]
[1641046436943,4.11486949,172.44,172.43,4.11803888]
[1641046437340,5.785,172.47,172.42,1.68564896]
[1641046438042,12.35340078,172.48,172.42,1.68564896]
[1641046438543,12.35340078,172.48,172.44,4.11821824]
[1641046438743,2.43115712,172.46,172.44,4.11821824]
[1641046439243,11.6579735,172.5,172.44,4.11821824]
[1641046440444,12.35474964,172.48,172.44,4.11821824]
[1641046441148,12.35474964,172.48,172.44,5.8038672]
[1641046443649,11.6579735,172.5,172.44,5.8038672]
[1641046443848,2.43118337,172.49,172.44,5.8038672]
[1641046444450,12.35468367,172.48,172.44,5.8038672]
[1641046445150,12.35468367,172.48,172.43,30.8588]
[1641046446650,12.35468367,172.48,172.44,27.66479]
[1641046447252,12.35468367,172.49,172.44,27.66479]
[1641046451358,14.78586704,172.5,172.44,27.66479]
[1641046453059,17.78586704,172.5,172.44,27.66479]
[1641046453359,12.35468367,172.49,172.44,27.66479]
[1641046454159,12.35468367,172.49,172.43,30.8588]
[1641046454358,4.11135894,172.45,172.43,30.8588]
[1641046454558,4.11135894,172.45,172.42,4.11821824]
[1641046454863,2.43118337,172.48,172.42,4.11821824]
[1641046455458,4.1113696,172.45,172.42,5.8022352]
[1641046456262,2.43118337,172.48,172.42,5.8022352]
[1641046456762,4.11136576,172.45,172.42,5.8022352]
[1641046457361,2.43118337,172.48,172.42,5.8022352]
[1641046457565,14.78586704,172.48,172.43,4.11821824]
[1641046458063,4.11695403,172.44,172.43,4.11821824]
[1641046458965,14.78586704,172.48,172.43,4.11821824]
[1641046459465,4.11695567,172.44,172.43,4.11821824]
[1641046459965,14.78586704,172.48,172.43,4.11821824]
[1641046460668,4.11696036,172.44,172.43,4.11821824]
[1641046461269,14.78586704,172.48,172.43,4.11821824]
[1641046462374,4.11696568,172.44,172.43,4.11821824]
[1641046462872,14.78586704,172.48,172.43,4.11821824]
[1641046463874,4.11696358,172.44,172.43,4.11821824]
[1641046464272,14.78586704,172.48,172.43,4.11821824]
[1641046464775,4.11696055,172.44,172.43,4.11821824]
[1641046465873,14.78586704,172.48,172.43,4.11821824]
[1641046467074,4.11696995,172.44,172.43,4.11821824]
[1641046467675,14.78586704,172.48,172.43,4.11821824]
[1641046468375,4.11696481,172.44,172.43,4.11821824]
[1641046468976,14.78586704,172.48,172.43,4.11821824]
[1641046469878,14.78586704,172.48,172.44,4.11821824]
[1641046470380,14.78586704,172.48,172.43,4.11821824]
[1641046473382,14.78586704,172.48,172.47,27.66479]
[1641046474186,12.35468367,172.51,172.47,33.4670252]
[1641046474884,12.35468367,172.5,172.47,31.78300824]
[1641046475586,11.64501257,172.53,172.47,27.66479]
[1641046476385,12.35275166,172.5,172.47,31.78300824]
[1641046477189,11.64501257,172.53,172.47,31.78300824]
[1641046477389,12.35273537,172.51,172.47,31.78300824]
[1641046479390,12.35273537,172.5,172.47,31.78300824]
[1641046480193,14.74366081,172.53,172.47,27.66479]
[1641046483197,14.74366081,172.53,172.44,33.61451824]
[1641046483695,14.74366081,172.53,172.46,27.66479]
[1641046484196,12.31247744,172.52,172.46,27.66479]
[1641046484597,12.31247744,172.52,172.44,33.61451824]
[1641046485500,4.1043896,172.48,172.44,29.4963]
[1641046485699,4.1043896,172.48,172.44,57.16109]
[1641046486001,4.10455272,172.47,172.44,57.16109]
[1641046486199,4.10455272,172.47,172.44,27.66479]
[1641046486699,12.31247744,172.51,172.44,27.66479]
[1641046486900,12.31247744,172.51,172.44,60.33319]
[1641046488001,12.31247744,172.49,172.45,5.80511976]
[1641046491408,12.31247744,172.47,172.44,64.45140824]
[1641046492006,65.33456575,172.51,172.44,64.45140824]
[1641046492207,11.62824548,172.5,172.44,60.33319]
[1641046492909,12.35500739,172.47,172.44,60.33319]
[1641046493110,12.35500739,172.47,172.44,27.66479]
[1641046493512,12.35500739,172.47,172.43,4.11821824]
[1641046493713,11.62824548,172.5,172.43,4.11821824]
[1641046494515,12.35486464,172.47,172.43,4.11821824]
[1641046495115,12.35458031,172.48,172.44,4.11821824]
[1641046495515,15.35458031,172.48,172.44,4.11821824]
[1641046495715,12.35458031,172.48,172.44,4.11821824]
[1641046496816,12.35458031,172.47,172.43,4.11821824]
[1641046499017,15.35458031,172.47,172.43,4.11821824]
[1641046499418,3.0,172.46,172.43,4.11821824]
[1641046500220,5.43118337,172.46,172.39,4.11821824]
[1641046501022,12.35751887,172.43,172.39,4.11821824]
[1641046501623,29.9103,172.45,172.39,4.11821824]
[1641046502523,12.35757621,172.43,172.39,4.11821824]
[1641046503023,11.62824548,172.44,172.39,4.11821824]
[1641046503829,12.35757145,172.43,172.39,4.11821824]
[1641046504031,12.35757145,172.43,172.4,27.66479]
[1641046504429,11.62824548,172.44,172.4,31.78300824]
[1641046504430,14.7881955,172.44,172.4,31.78300824]
[1641046505433,29.9103,172.45,172.4,31.78300824]
[1641046505630,32.91526575,172.48,172.4,31.78300824]
[1641046505829,64.28476575,172.48,172.4,31.78300824]
[1641046506229,31.3695,172.48,172.4,30.66479]
[1641046506429,2.41608052,172.49,172.4,27.66479]
[1641046506631,2.41608052,172.49,172.4,30.66479]
[1641046507031,58.87379,172.5,172.41,33.2047]
[1641046507632,27.66479,172.5,172.41,33.2047]
[1641046509534,27.66479,172.5,172.41,37.32291824]
[1641046510134,14.70682119,172.49,172.45,4.11821824]
[1641046511734,27.66479,172.5,172.45,4.11821824]
[1641046512637,14.78486196,172.49,172.45,4.11821824]
[1641046513138,27.66479,172.5,172.45,4.11821824]
[1641046513838,14.78477493,172.49,172.45,4.11821824]
[1641046514440,27.66479,172.5,172.45,4.11821824]
[1641046515441,14.78473213,172.49,172.45,4.11821824]
[1641046515842,27.66479,172.5,172.45,4.11821824]
[1641046516543,14.78495714,172.49,172.45,4.11821824]
[1641046517446,27.66479,172.5,172.45,4.11821824]
[1641046517844,14.78493009,172.49,172.45,4.11821824]
[1641046522451,12.35387653,172.48,172.44,4.11821824]
[1641046523050,11.66010725,172.49,172.44,4.11821824]
[1641046523652,12.35463639,172.48,172.44,4.11821824]
[1641046524253,11.66010725,172.49,172.44,4.11821824]
[1641046524853,12.3545414,172.48,172.44,4.11821824]
[1641046525453,11.66010725,172.49,172.44,4.11821824]
[1641046526253,14.78557401,172.49,172.45,4.11821824]
[1641046526954,12.35452045,172.47,172.43,4.11821824]
[1641046527555,11.66083007,172.49,172.43,4.11821824]
[1641046528156,3.0,172.48,172.43,4.11821824]
[1641046528356,12.35532395,172.47,172.43,4.11821824]
[1641046528855,15.35532395,172.47,172.43,4.11821824]
[1641046529056,12.35532395,172.47,172.43,4.11821824]
[1641046529256,12.35532395,172.47,172.4,16.46280043]
[1641046529257,2.43105356,172.47,172.4,16.46280043]
[1641046529457,12.3575264,172.44,172.4,4.11821824]
[1641046530259,12.3575264,172.45,172.41,4.11821824]
[1641046530959,11.66083007,172.47,172.41,31.78300824]
[1641046531560,11.66083007,172.47,172.43,4.11821824]
[1641046531561,12.35577885,172.46,172.43,4.11821824]
[1641046531761,12.35577885,172.46,172.43,8.89021824]
[1641046532261,14.78639715,172.47,172.43,8.89021824]
[1641046532860,31.7409,172.48,172.43,8.89021824]
[1641046533764,14.78662879,172.47,172.43,8.89021824]
[1641046534564,31.7409,172.48,172.43,8.89021824]
[1641046535166,14.78669194,172.47,172.43,8.89021824]
[1641046535765,31.7409,172.48,172.43,4.11821824]
[1641046536366,2.43192461,172.47,172.41,31.78300824]
[1641046536566,12.35625214,172.45,172.41,31.78300824]
[1641046537867,11.66289072,172.47,172.41,31.78300824]
[1641046538066,12.3558238,172.46,172.42,5.80505862]
[1641046538668,11.66289072,172.47,172.42,5.80505862]
[1641046539070,11.66289072,172.47,172.42,4.11821824]
[1641046539271,12.35633025,172.45,172.41,31.78300824]
[1641046539771,11.66289072,172.47,172.41,31.78300824]
[1641046540373,12.35624968,172.45,172.41,31.78300824]
[1641046541071,11.66289072,172.47,172.41,31.78300824]
[1641046542171,12.35617305,172.46,172.42,5.80504697]
[1641046544373,12.35617305,172.46,172.43,4.11821824]
[1641046544973,14.78736239,172.47,172.43,4.11821824]
[1641046546173,31.7409,172.48,172.43,4.11821824]
[1641046546774,14.78685919,172.47,172.43,4.11821824]
[1641046547476,31.7409,172.48,172.43,4.11821824]
[1641046548076,14.78686113,172.47,172.43,4.11821824]
[1641046548676,31.7409,172.48,172.43,4.11821824]
[1641046549477,14.78681841,172.47,172.43,4.11821824]
[1641046550580,31.7409,172.48,172.43,4.11821824]
[1641046550880,31.7409,172.48,172.43,5.80504697]
[1641046551079,14.78731719,172.47,172.43,5.80504697]
[1641046551879,12.35562319,172.46,172.42,34.31341824]
[1641046552481,11.66205678,172.47,172.42,34.31341824]
[1641046553183,12.35575545,172.46,172.42,34.31341824]
[1641046553984,11.66205678,172.47,172.42,34.31341824]
[1641046554987,12.3560549,172.46,172.42,34.31341824]
[1641046557287,14.7877489,172.47,172.43,5.8050686]
[1641046558591,14.7877489,172.47,172.42,30.1952]
[1641046558592,12.3560549,172.46,172.42,34.31341824]
[1641046560490,14.7877489,172.47,172.43,5.80506798]
[1641046561491,14.7877489,172.47,172.42,34.31341824]
[1641046561492,12.3560549,172.46,172.42,34.31341824]
[1641046562192,11.66214087,172.47,172.42,34.31341824]
[1641046562594,2.431694,172.45,172.42,30.1952]
[1641046562892,2.431694,172.45,172.41,31.78300824]
[1641046563294,14.78371966,172.47,172.42,4.11821824]
[1641046563896,14.78371966,172.47,172.43,4.11821824]
[1641046564495,14.78371966,172.47,172.42,5.80460061]
[1641046566000,14.78371966,172.47,172.43,4.11821824]
[1641046566696,31.7409,172.48,172.43,4.11821824]
[1641046567197,14.77963572,172.47,172.43,4.11821824]
[1641046568001,12.3502458,172.46,172.41,4.11821824]
[1641046568898,12.3502458,172.45,172.41,4.11821824]
[1641046571200,12.3502458,172.45,172.4,5.80417234]
[1641046572104,32.91526575,172.49,172.41,3.0]
[1641046572302,5.79474996,172.56,172.44,55.32958]
[1641046572502,5.79474996,172.56,172.48,3.0]
[1641046572902,5.79474996,172.56,172.49,3.0]
[1641046573101,5.79474996,172.56,172.5,3.0]
[1641046573302,31.7376,172.57,172.51,3.0]
[1641046573504,40.19999538,172.54,172.51,3.0]
[1641046573701,2.42954617,172.55,172.52,3.0]
[1641046573902,2.42954617,172.55,172.5,3.0]
[1641046574102,2.42954617,172.55,172.54,27.66479]
[1641046574502,32.6795,172.63,172.54,27.66479]
[1641046575103,60.10599,172.66,172.54,27.66479]
[1641046575303,27.66479,172.66,172.54,27.66479]
[1641046575703,3.29285737,172.64,172.55,91.16382865]
[1641046575904,3.29285737,172.64,172.55,94.16382865]
[1641046576105,3.29285737,172.64,172.59,4.11418767]
[1641046576308,27.66479,172.66,172.59,4.11418767]
[1641046576906,27.66479,172.66,172.6,4.11418767]
[1641046580315,27.66479,172.66,172.61,4.11418767]
[1641046581113,27.66479,172.66,172.58,29.6792]
[1641046581114,27.66479,172.66,172.63,4.11418767]
[1641046586021,33.4553456,172.69,172.63,4.11418767]
[1641046586421,3.29192258,172.68,172.63,4.11418767]
[1641046589623,3.29192258,172.68,172.62,4.11418767]
[1641046590423,3.29192258,172.68,172.58,29.6792]
[1641046592929,3.29192258,172.68,172.58,32.6792]
[1641046593127,3.29192258,172.68,172.58,29.6792]
[1641046594235,3.29192258,172.68,172.61,27.66479]
[1641046595135,3.29192258,172.68,172.64,4.11418767]
[1641046596438,7.56059774,172.69,172.64,4.11418767]
[1641046597040,7.56059774,172.7,172.64,4.11418767]
[1641046597539,3.29165238,172.69,172.65,4.11418767]
[1641046598241,3.29165238,172.69,172.61,27.66479]
[1641046598242,3.29165238,172.69,172.64,4.11418767]
[1641046598943,10.85225012,172.69,172.64,4.11418767]
[1641046599541,7.56059774,172.69,172.64,4.11418767]
[1641046599742,27.66479,172.7,172.65,4.11418767]
[1641046599941,3.29171788,172.68,172.65,4.11418767]
[1641046600342,27.66479,172.7,172.65,4.11418767]
[1641046601144,30.344,172.71,172.65,4.11418767]
[1641046601745,30.344,172.71,172.66,0.65834772]
[1641046601945,7.63915848,172.7,172.66,0.65834772]
[1641046602449,35.30394848,172.7,172.66,0.65834772]
[1641046602648,12.3446918,172.68,172.66,0.65834772]
[1641046603249,12.3446918,172.68,172.65,4.77253539]
[1641046603647,12.3446918,172.68,172.66,0.65834772]
[1641046604549,12.3446918,172.71,172.67,4.11418767]
[1641046604949,12.3446918,172.71,172.68,0.65834772]
[1641046607750,12.3446918,172.7,172.68,0.65834772]
[1641046609054,12.3446918,172.7,172.67,0.65834772]
[1641046610353,12.3446918,172.71,172.67,4.77253539]
[1641046610755,12.3446918,172.71,172.68,0.65834772]
[1641046611556,3.0,172.7,172.68,0.65834772]
[1641046611755,3.0,172.69,172.68,0.65834772]
[1641046611957,3.0,172.7,172.68,0.65834772]
[1641046612560,3.0,172.69,172.68,0.65834772]
[1641046612757,30.66479,172.69,172.68,0.65834772]
[1641046613559,27.66479,172.69,172.68,0.65834772]
[1641046613759,27.66479,172.69,172.66,0.65834772]
[1641046614360,27.66479,172.69,172.65,0.65834772]
[1641046616863,30.66479,172.69,172.64,4.11418767]
[1641046617064,5.79139399,172.66,172.64,3.38668767]
[1641046618264,5.79139399,172.66,172.6,12.3446918]
[1641046618464,5.79139399,172.66,172.58,12.3446918]
[1641046618864,29.7841,172.68,172.61,0.65845428]
[1641046619064,29.7841,172.68,172.61,13.00314608]
[1641046619266,3.0,172.71,172.61,12.3446918]
[1641046619464,3.0,172.69,172.61,12.3446918]
[1641046619666,3.0,172.69,172.62,0.65845428]
[1641046619864,5.79089093,172.68,172.62,0.65845428]
[1641046620765,5.79089093,172.68,172.63,14.60951301]
[1641046621570,5.79089093,172.68,172.64,0.65845428]
[1641046621867,1.83613359,172.67,172.64,0.65845428]
[1641046622369,1.83613359,172.67,172.65,2.26482121]
[1641046622969,1.83613359,172.67,172.66,0.65845428]
[1641046623668,1.83613359,172.67,172.66,2.92327549]
[1641046625275,1.83613359,172.67,172.66,0.65845428]
[1641046625673,1.83613359,172.67,172.63,0.65845428]
[1641046626976,14.18082539,172.71,172.64,2.27210879]
[1641046627382,14.18082539,172.71,172.65,0.65845428]
[1641046628380,14.18082539,172.71,172.66,2.27210879]
[1641046629281,14.18082539,172.71,172.67,0.65845428]
[1641046630884,14.18082539,172.71,172.64,0.65845428]
[1641046631988,14.18082539,172.71,172.65,2.27210441]
[1641046632392,14.18082539,172.71,172.66,0.65845428]
[1641046633590,14.18082539,172.71,172.67,2.27210441]
[1641046634092,14.18082539,172.71,172.68,0.65845428]
[1641046634894,12.3446918,172.71,172.68,0.65845428]
[1641046635095,40.0094818,172.71,172.68,0.65845428]
[1641046635496,3.0,172.7,172.64,0.65845428]
[1641046635697,40.0094818,172.71,172.64,0.65845428]
[1641046635898,1.83613359,172.69,172.65,2.27211199]
[1641046636297,1.83613359,172.69,172.66,0.65845428]
[1641046636597,1.83613359,172.7,172.66,0.65845428]
[1641046637096,1.83613359,172.7,172.67,2.27211199]
[1641046637600,1.83613359,172.7,172.68,0.65845428]
[1641046638997,1.83613359,172.7,172.64,0.65845428]
[1641046639697,1.83613359,172.7,172.65,2.27210665]
[1641046640202,1.83613359,172.7,172.66,0.65845428]
[1641046640602,14.18082539,172.72,172.66,0.65845428]
[1641046641001,27.66479,172.7,172.66,0.65845428]
[1641046641401,14.18082539,172.72,172.66,0.65845428]
[1641046641601,12.3446918,172.71,172.67,2.27210665]
[1641046642000,12.3446918,172.71,172.68,0.65845428]
[1641046642600,14.18082539,172.71,172.68,0.65845428]
[1641046643102,27.66479,172.7,172.68,0.65845428]
[1641046643703,1.83613359,172.69,172.66,0.65845428]
[1641046644602,1.83613359,172.69,172.67,2.27210886]
[1641046645405,1.83613359,172.69,172.68,0.65845428]
[1641046646404,12.3446918,172.71,172.68,0.65845428]
[1641046646903,12.3446918,172.71,172.66,0.65845428]
[1641046647902,12.3446918,172.71,172.67,2.27211453]
[1641046648304,14.18082539,172.71,172.67,2.27211453]
[1641046648606,14.18082539,172.71,172.68,0.65845428]
[1641046649406,27.66479,172.7,172.68,0.65845428]
[1641046650306,27.66479,172.7,172.66,0.65845428]
[1641046650507,27.66479,172.7,172.65,31.2688]
[1641046650508,1.83613359,172.69,172.65,31.2688]
[1641046651109,1.83613359,172.69,172.66,2.27211412]
[1641046651410,14.18082539,172.71,172.66,2.27211412]
[1641046651610,41.84561539,172.71,172.66,2.27211412]
[1641046652811,1.83613359,172.7,172.66,2.27211412]
[1641046655114,4.83613359,172.7,172.66,2.27211412]
[1641046655315,3.0,172.67,172.66,2.27211412]
[1641046655718,3.0,172.68,172.66,2.27211412]
[1641046655916,30.66479,172.68,172.66,2.27211412]
[1641046656517,4.83613359,172.7,172.66,2.27211412]
[1641046656717,3.0,172.69,172.66,2.27211412]
[1641046656916,4.83613359,172.67,172.61,2.27211412]
[1641046657118,3.0,172.64,172.61,2.27211412]
[1641046657518,3.0,172.65,172.61,2.27211412]
[1641046657916,1.83613359,172.63,172.58,12.3446918]
[1641046658619,1.83613359,172.64,172.58,12.3446918]
[1641046660920,1.83613359,172.64,172.57,23.41882536]
[1641046661321,3.0,172.65,172.57,23.41882536]
[1641046661620,3.0,172.65,172.58,12.3446918]
[1641046662222,1.84317365,172.64,172.58,12.3446918]
[1641046662920,1.84315061,172.65,172.58,15.3446918]
[1641046663321,1.84315061,172.65,172.58,12.3446918]
[1641046663521,1.84244057,172.66,172.61,12.3446918]
[1641046664421,14.18589449,172.69,172.61,23.41882536]
[1641046665822,32.8936,172.7,172.61,23.41882536]
[1641046666021,27.66479,172.68,172.62,0.65831471]
[1641046666323,1.84228766,172.67,172.63,2.27211412]
[1641046666823,1.84228766,172.67,172.64,0.65831471]
[1641046667022,27.66479,172.68,172.64,0.65831471]
[1641046668227,1.8422635,172.67,172.65,2.27211412]
[1641046668625,27.66479,172.68,172.66,0.65831471]
[1641046669425,1.84226455,172.67,172.66,0.65831471]
[1641046669626,1.84226455,172.67,172.63,0.65831471]
[1641046669925,1.84226455,172.67,172.62,0.65831471]
[1641046670226,27.66479,172.68,172.62,0.65831471]
[1641046670426,40.00839733,172.68,172.64,2.27204717]
[1641046670925,1.83689225,172.67,172.65,0.65831471]
[1641046671328,1.83689225,172.67,172.61,0.65831471]
[1641046671528,27.66479,172.68,172.61,0.65831471]
[1641046672427,27.66479,172.68,172.62,2.26516608]
[1641046672626,21.08197045,172.68,172.62,2.26516608]
[1641046673027,24.08197045,172.68,172.62,2.26516608]
[1641046673228,21.08197045,172.68,172.62,2.26516608]
[1641046673429,21.08197045,172.68,172.63,0.65831471]
[1641046673630,1.8957339,172.67,172.63,0.65831471]
[1641046674831,1.8957339,172.68,172.63,0.65831471]
[1641046675031,1.8957339,172.68,172.61,0.65831471]
[1641046675531,1.8957339,172.69,172.62,2.26515658]
[1641046676032,1.8957339,172.69,172.63,0.65831471]
[1641046677133,1.8957339,172.69,172.61,0.65831471]
[1641046677534,1.8957339,172.69,172.63,4.10184387]
[1641046677937,4.8957339,172.69,172.63,4.10184387]
[1641046678133,4.8957339,172.69,172.64,0.65831471]
[1641046679237,1.8957339,172.68,172.65,6.36700176]
[1641046679836,12.30609158,172.68,172.64,4.76015858]
[1641046680036,12.30609158,172.68,172.66,0.65831471]
[1641046680438,12.30609158,172.68,172.65,0.65831471]
[1641046681439,15.30609158,172.68,172.65,0.65831471]
[1641046681839,17.20182548,172.69,172.65,4.76015858]
[1641046682241,14.20182548,172.69,172.66,0.65831471]
[1641046682540,22.99271641,172.68,172.66,0.65831471]
[1641046683141,14.20182548,172.67,172.65,0.65831471]
[1641046683744,14.20182548,172.67,172.64,0.65831471]
[1641046683940,15.30609158,172.66,172.64,0.65831471]
[1641046684142,15.30609158,172.66,172.64,1.471e-05]
[1641046684543,1.8957339,172.65,172.62,4.10184387]
[1641046685543,1.8957339,172.65,172.63,0.65841226]
[1641046686142,4.8957339,172.65,172.63,0.65841226]
[1641046686345,3.0,172.64,172.61,4.10184387]